bitfinex-derivatives/quotes_BTCF0:USTF0_20250309
["timestamp","ask_amount","ask_price","bid_price","bid_amount"]
[1741522148965,0.11859254,84464.0,84463.0,0.3672163]
[1741522149163,0.1184163,84463.0,84462.0,0.10496]
[1741522149360,0.3706163,84463.0,84462.0,0.10496]
[1741522149552,0.1184261,84456.0,84455.0,0.18968]
[1741522149858,0.5841461,84456.0,84455.0,0.18968]
[1741522150162,0.1184584,84433.0,84432.0,5e-08]
[1741522150465,0.1184868,84415.0,84414.0,0.1184804]
[1741522150859,0.1184921,84409.0,84408.0,0.105]
[1741522151058,0.4746,84432.0,84397.0,0.36257733]
[1741522151059,0.1185047,84400.0,84397.0,0.36257733]
[1741522151565,0.1185047,84400.0,84399.0,0.3081061]
[1741522151757,0.1246,84401.0,84400.0,0.1185047]
[1741522151955,0.3608,84404.0,84399.0,0.1896]
[1741522152263,0.1246,84400.0,84399.0,0.51883452]
[1741522152473,0.3598,84404.0,84403.0,0.1185005]
[1741522152671,0.1246,84407.0,84406.0,0.1184963]
[1741522152859,0.1185047,84401.0,84400.0,0.0592523]
[1741522153061,0.0592488,84405.0,84402.0,0.1777495]
[1741522153264,0.0592488,84405.0,84404.0,0.1184991]
[1741522153454,0.1246,84407.0,84406.0,0.1184963]
[1741522153761,0.1246,84407.0,84399.0,0.40032842]
[1741522153954,0.1246,84407.0,84400.0,0.2392]
[1741522154155,0.1185033,84402.0,84401.0,0.1184977]
[1741522154355,0.1185033,84402.0,84401.0,0.2369965]
[1741522154561,0.0592488,84405.0,84401.0,0.2382977]
[1741522154758,0.00017764,84417.0,84411.0,0.1184892]
[1741522154963,0.1184949,84410.0,84409.0,0.1777347]
[1741522155263,0.1237,84416.0,84409.0,0.0592442]
[1741522155565,0.00017764,84417.0,84416.0,0.1184822]
[1741522155766,0.11865844,84417.0,84416.0,0.2227622]
[1741522156266,0.00017764,84417.0,84416.0,0.2227622]
[1741522156467,0.11865844,84417.0,84416.0,0.2227622]
[1741522157067,0.00017764,84417.0,84416.0,0.2227622]
[1741522157266,0.11865844,84417.0,84416.0,0.2227622]
[1741522157862,0.00017764,84417.0,84416.0,0.2227622]
[1741522158770,0.0592336,84428.0,84427.0,0.0592327]
[1741522159067,0.1873306,84431.0,84430.0,0.1184626]
[1741522159261,0.00108001,84461.0,84433.0,0.1184584]
[1741522159467,0.3608,84441.0,84440.0,0.1184486]
[1741522159765,0.121,84446.0,84445.0,0.1184415]
[1741522159963,0.121,84446.0,84445.0,0.2218815]
[1741522160164,0.11861354,84449.0,84448.0,0.1184373]
[1741522160360,0.11861354,84449.0,84448.0,0.3080773]
[1741522160558,0.00017764,84449.0,84448.0,0.3080773]
[1741522160763,0.11861354,84449.0,84448.0,0.3080773]
[1741522161682,0.11861354,84449.0,84448.0,0.18964]
[1741522162771,0.12161354,84449.0,84448.0,0.18964]
[1741522163470,0.1174542,84436.0,84435.0,0.1896]
[1741522163659,0.1184584,84433.0,84423.0,0.21072842]
[1741522164470,0.1184584,84433.0,84423.0,0.26996462]
[1741522164771,0.1184584,84433.0,84426.0,0.1184681]
[1741522164973,0.1184584,84433.0,84423.0,0.46489972]
[1741522165166,0.1184584,84433.0,84425.0,0.1184686]
[1741522165572,0.1184584,84433.0,84424.0,0.1184698]
[1741522165774,0.1184584,84433.0,84425.0,0.1184687]
[1741522165979,0.1184584,84433.0,84423.0,0.34642842]
[1741522166170,0.1184584,84433.0,84432.0,0.11863744]
[1741522166370,0.1174584,84433.0,84432.0,0.00017764]
[1741522166562,0.4865584,84433.0,84432.0,4e-08]
[1741522167166,0.6222584,84433.0,84432.0,0.00100004]
[1741522167373,0.118471,84424.0,84423.0,0.21072842]
[1741522167578,0.46316,84424.0,84405.0,0.2612]
[1741522167871,0.2445724,84423.0,84422.0,0.12025068]
[1741522168070,0.3608,84424.0,84423.0,0.1184724]
[1741522168268,0.3608,84424.0,84423.0,0.2504724]
[1741522168569,0.478271,84424.0,84423.0,0.32164]
[1741522169183,0.478271,84424.0,84423.0,0.4401124]
[1741522169376,0.478271,84424.0,84423.0,0.32164]
[1741522170169,0.484271,84424.0,84423.0,0.32264]
[1741522171078,0.1174724,84423.0,84422.0,0.00177688]
[1741522171279,0.3876724,84423.0,84422.0,0.00177688]
[1741522171671,0.3876724,84423.0,84422.0,8e-08]
[1741522172181,0.059246,84409.0,84393.0,0.28123361]
[1741522172479,0.8401075,84398.0,84393.0,0.28183361]
[1741522172673,0.9417075,84398.0,84393.0,0.28123361]
[1741522172879,0.9407,84398.0,84393.0,0.07436203]
[1741522173072,0.1185187,84390.0,84389.0,0.25056034]
[1741522173273,0.4793187,84390.0,84389.0,0.19623154]
[1741522173582,0.4793187,84390.0,84389.0,0.14586524]
[1741522173776,0.6151187,84390.0,84389.0,0.14586524]
[1741522174575,0.1185258,84385.0,84381.0,0.00017775]
[1741522174882,0.11853,84382.0,84381.0,0.00017775]
[1741522175278,0.118537,84377.0,84376.0,0.21207166]
[1741522175474,0.580497,84377.0,84376.0,0.21207166]
[1741522176085,0.1185482,84369.0,84368.0,0.35345277]
[1741522176275,0.5804682,84369.0,84368.0,0.35345277]
[1741522176469,0.1185553,84364.0,84360.0,0.00017775]
[1741522176875,0.2685553,84364.0,84360.0,0.00017775]
[1741522177577,0.2194753,84364.0,84363.0,0.54270002]
[1741522177881,0.10792,84364.0,84363.0,0.54270002]
[1741522178075,0.2264753,84364.0,84363.0,0.42414332]
[1741522178283,0.007,84364.0,84363.0,0.54270002]
[1741522178582,0.007,84364.0,84363.0,0.67350002]
[1741522178976,0.1255553,84364.0,84363.0,0.67350002]
[1741522179284,0.1255553,84364.0,84363.0,0.2493567]
[1741522179485,0.1255553,84364.0,84363.0,0.1308]
[1741522179683,0.1255553,84364.0,84360.0,0.00017775]
[1741522179684,0.1185595,84361.0,84360.0,0.00017775]
[1741522179888,0.2193995,84361.0,84360.0,0.00017775]
[1741522180677,0.1185595,84361.0,84360.0,0.00017775]
[1741522181086,0.1245595,84361.0,84360.0,0.00017775]
[1741522182584,0.006,84361.0,84360.0,0.11873865]
[1741522182887,0.00017775,84377.0,84369.0,0.1185482]
[1741522183085,0.00017775,84377.0,84376.0,0.1185384]
[1741522183483,0.10451836,84379.0,84378.0,0.1185356]
[1741522183690,0.10451836,84379.0,84378.0,0.4090156]
[1741522184083,0.20903672,84396.0,84378.0,0.54538]
[1741522184278,0.20903672,84396.0,84389.0,0.1185201]
[1741522184591,0.32754782,84396.0,84389.0,0.2191201]
[1741522184786,0.1185136,84394.0,84389.0,0.2191201]
[1741522184982,0.1185164,84392.0,84389.0,0.2191201]
[1741522185785,0.1185201,84389.0,84388.0,0.1263]
[1741522185977,0.1185201,84389.0,84388.0,0.2448215]
[1741522186886,0.1185201,84389.0,84388.0,0.1263]
[1741522187084,0.2543201,84389.0,84388.0,0.1263]
[1741522187277,0.3876201,84389.0,84382.0,0.1278]
[1741522187477,0.4783286,84383.0,84382.0,0.1278]
[1741522187683,0.4783286,84383.0,84382.0,0.2572]
[1741522188193,0.2751,84389.0,84384.0,0.1185258]
[1741522188194,0.1185286,84385.0,84384.0,0.1185258]
[1741522188385,0.1185286,84385.0,84384.0,0.3757258]
[1741522188594,0.006,84389.0,84384.0,0.2572]
[1741522188892,0.1777878,84387.0,84386.0,0.1185215]
[1741522189087,0.1777878,84387.0,84386.0,0.3732215]
[1741522190088,0.059262,84387.0,84386.0,0.2547]
[1741522190479,0.064262,84387.0,84386.0,0.2557]
[1741522192083,0.005,84387.0,84372.0,0.4793432]
[1741522192288,0.1185342,84379.0,84373.0,0.137]
[1741522192484,0.1185342,84379.0,84378.0,0.3082956]
[1741522193193,0.1185323,84381.0,84380.0,0.1185314]
[1741522193693,0.003,84387.0,84386.0,0.1185244]
[1741522193896,0.1215229,84387.0,84386.0,0.1185244]
[1741522194094,0.1185229,84387.0,84386.0,0.1185244]
[1741522194290,0.2381,84396.0,84388.0,0.1185201]
[1741522194491,0.4793187,84390.0,84389.0,0.137]
[1741522195988,0.4793187,84390.0,84386.0,0.1185237]
[1741522196286,0.1777963,84383.0,84382.0,0.1185295]
[1741522196488,0.1767963,84383.0,84382.0,0.1185295]
[1741522197395,0.1757963,84383.0,84382.0,0.1185295]
[1741522198193,0.4220649,84383.0,84377.0,0.18972]
[1741522198392,0.1185356,84378.0,84377.0,0.18972]
[1741522199092,0.2168156,84378.0,84377.0,0.18972]
[1741522199290,0.118544,84372.0,84370.0,0.00017775]
[1741522199492,0.479344,84372.0,84370.0,0.00017775]
[1741522199889,0.770544,84372.0,84370.0,0.00017775]
[1741522200289,0.1185454,84371.0,84370.0,4e-08]
[1741522200685,0.5597454,84371.0,84370.0,4e-08]
[1741522201086,0.2912,84371.0,84351.0,0.17972004]
[1741522201291,0.2912,84371.0,84337.0,0.0017787]
[1741522201292,0.1185918,84338.0,84337.0,0.0017787]
[1741522202485,0.00017786,84346.0,84337.0,0.2872787]
[1741522202685,0.00017786,84346.0,84338.0,0.0592959]
[1741522202893,0.1185896,84341.0,84340.0,0.1778774]
[1741522203092,0.1185917,84340.0,84339.0,0.1185876]
[1741522203291,0.1185917,84340.0,84339.0,0.4040876]
[1741522203491,0.00017786,84346.0,84345.0,0.118582]
[1741522203695,0.09792,84364.0,84362.0,0.1185572]
[1741522203889,0.09792,84364.0,84363.0,0.2952]
[1741522203890,0.2757535,84364.0,84363.0,0.2952]
[1741522204288,0.5590535,84364.0,84363.0,0.2952]
[1741522204490,0.5590535,84364.0,84363.0,0.1468]
[1741522204689,0.38122,84364.0,84355.0,0.18976]
[1741522204891,0.4793665,84356.0,84355.0,0.18993786]
[1741522206292,0.13914829,84367.0,84355.0,0.18993786]
[1741522206499,0.19842389,84367.0,84364.0,0.1185553]
[1741522206704,0.1185651,84357.0,84356.0,0.2834]
[1741522206887,0.143,84366.0,84361.0,0.1778362]
[1741522207093,0.13914829,84367.0,84364.0,0.4793553]
[1741522207298,0.13914829,84367.0,84366.0,0.1185524]
[1741522207698,0.13914829,84367.0,84366.0,0.3937524]
[1741522209602,0.13914829,84367.0,84366.0,0.5437524]
[1741522209901,0.00017786,84372.0,84371.0,0.1185454]
[1741522210200,0.00017786,84372.0,84371.0,0.58854475]
[1741522210401,0.13959983,84384.0,84371.0,0.46999935]
[1741522210600,0.13959983,84384.0,84383.0,0.1185286]
[1741522210793,0.13959983,84384.0,84383.0,0.4054086]
[1741522211798,0.61892703,84384.0,84383.0,0.18976]
[1741522212392,0.13959983,84384.0,84383.0,0.3082886]
[1741522212996,0.13959983,84384.0,84383.0,0.5894886]
[1741522213201,0.25812703,84384.0,84383.0,0.32416]
[1741522213395,0.25812703,84384.0,84383.0,0.4426886]
[1741522213799,0.25812703,84384.0,84383.0,0.5870886]
[1741522214397,0.25812703,84384.0,84383.0,0.46856]
[1741522214398,0.1185272,84384.0,84383.0,0.46856]
[1741522214593,0.1185272,84384.0,84383.0,0.5870886]
[1741522214900,0.0592627,84386.0,84385.0,0.1185258]
[1741522215100,0.1185173,84391.0,84390.0,0.1185173]
[1741522215406,0.1185201,84389.0,84388.0,0.1777813]
[1741522215706,0.00017786,84392.0,84391.0,0.1185173]
[1741522216303,0.00017786,84392.0,84391.0,0.4793173]
[1741522216694,0.3608,84400.0,84399.0,0.1185061]
[1741522216894,0.17471712,84401.0,84400.0,0.1185047]
[1741522217606,0.20903672,84408.0,84407.0,0.1184949]
[1741522217800,0.20903672,84408.0,84407.0,0.4048149]
[1741522218005,0.20903672,84408.0,84407.0,0.7656149]
[1741522218304,0.1184935,84408.0,84407.0,0.28632]
[1741522218703,0.3968935,84408.0,84407.0,0.18976]
[1741522219900,0.2784,84408.0,84385.0,0.0006]
[1741522220102,0.3608,84386.0,84367.0,0.18972]
[1741522220300,0.1185496,84368.0,84367.0,0.18972]
[1741522221004,0.4793496,84368.0,84367.0,0.18972]
[1741522221207,0.1185609,84360.0,84359.0,0.00017774]
[1741522221412,0.5758809,84360.0,84359.0,0.00017774]
[1741522222307,0.7130809,84360.0,84359.0,0.00017774]
[1741522222709,0.7128409,84360.0,84359.0,0.00017774]
[1741522223413,0.59428,84360.0,84358.0,0.10808458]
[1741522223608,0.1185707,84353.0,84352.0,0.4235665]
[1741522223809,0.5754507,84353.0,84352.0,0.4235665]
[1741522224009,0.4793707,84353.0,84352.0,0.4235665]
[1741522224208,0.5754507,84353.0,84352.0,0.4235665]
[1741522224409,0.5754507,84353.0,84275.0,1.16553563]
[1741522224410,0.1185876,84341.0,84301.0,0.44905648]
[1741522224713,0.4793876,84341.0,84326.0,0.18976]
[1741522225011,0.4793876,84341.0,84332.0,0.11877795]
[1741522225214,0.6358876,84341.0,84332.0,0.00017785]
[1741522226412,0.1185988,84333.0,84332.0,0.00017785]
[1741522226615,0.5753988,84333.0,84332.0,0.00017785]
[1741522226815,0.4793988,84333.0,84332.0,0.00017785]
[1741522227015,0.3608,84344.0,84332.0,0.00017785]
[1741522227213,0.3608,84333.0,84332.0,0.15727785]
[1741522227514,0.4793988,84333.0,84332.0,0.27587805]
[1741522227715,0.4793988,84333.0,84332.0,0.25335785]
[1741522228109,0.4793988,84333.0,84332.0,0.00017785]
[1741522229517,0.6304988,84333.0,84332.0,0.00017785]
[1741522230920,0.63557802,84333.0,84332.0,0.00017785]
[1741522231409,0.48447802,84333.0,84332.0,0.00017785]
[1741522231613,0.79227802,84333.0,84332.0,0.00017785]
[1741522231806,0.7871988,84333.0,84332.0,0.00017785]
[1741522232209,0.8825988,84333.0,84332.0,0.00017785]
[1741522232609,0.8825988,84333.0,84322.0,0.16741678]
[1741522232610,0.91915155,84333.0,84322.0,0.01191678]
[1741522232811,0.91915155,84333.0,84310.0,0.1898]
[1741522232812,0.00558948,84333.0,84332.0,0.1186002]
[1741522233014,0.00558948,84333.0,84332.0,0.3084002]
[1741522233218,0.01218157,84346.0,84345.0,0.118582]
[1741522233416,0.01218157,84346.0,84345.0,0.214262]
[1741522233621,0.1185806,84346.0,84345.0,0.09568]
[1741522233918,0.1185806,84346.0,84342.0,0.1584]
[1741522234117,0.1185918,84338.0,84337.0,0.00017785]
[1741522234319,0.2145918,84338.0,84337.0,0.00017785]
[1741522234720,0.0592936,84342.0,84337.0,0.00017785]
[1741522234914,0.1185918,84338.0,84337.0,0.00017785]
[1741522235515,0.3608,84344.0,84337.0,0.00017785]
[1741522235716,0.1185918,84338.0,84337.0,0.00017785]
[1741522236216,0.4793918,84338.0,84337.0,0.00017785]
[1741522236731,0.7884918,84338.0,84337.0,0.00017785]
[1741522237118,0.6699,84338.0,84337.0,0.00017785]
[1741522237312,0.79729645,84338.0,84337.0,0.1185932]
[1741522237515,0.31790325,84338.0,84332.0,0.1898]
[1741522237719,0.31790325,84338.0,84337.0,0.1185932]
[1741522237917,0.3608,84345.0,84334.0,0.1515]
[1741522238120,0.1185834,84344.0,84343.0,0.1185842]
[1741522238318,0.1185834,84344.0,84341.0,0.0592938]
[1741522238529,0.3608,84345.0,84339.0,0.0592949]
[1741522238710,0.118589,84340.0,84339.0,0.0592949]
[1741522238913,0.3608,84362.0,84338.0,0.09572]
[1741522239112,0.3608,84366.0,84353.0,0.1185707]
[1741522239417,0.3608,84366.0,84353.0,0.4042107]
[1741522239624,0.4793532,84366.0,84353.0,0.4042107]
[1741522239812,0.1185595,84361.0,84353.0,0.2735649]
[1741522240319,0.1185588,84362.0,84353.0,0.2735649]
[1741522240519,0.0592838,84356.0,84353.0,0.4239649]
[1741522240720,0.11874715,84354.0,84353.0,0.4239649]
[1741522240920,0.11874715,84354.0,84353.0,0.3054742]
[1741522241121,0.11874715,84354.0,84353.0,0.4240449]
[1741522241323,0.00017785,84354.0,84353.0,0.4240449]
[1741522241728,0.11874715,84354.0,84353.0,0.3054742]
[1741522242027,0.11874715,84354.0,84353.0,0.0591542]
[1741522242220,0.47954715,84354.0,84353.0,0.0591542]
[1741522242416,0.47954715,84354.0,84346.0,0.00887586]
[1741522242417,0.36097785,84354.0,84346.0,0.00887586]
[1741522242620,0.118589,84340.0,84339.0,0.1452]
[1741522242922,0.1185904,84339.0,84338.0,0.1898]
[1741522243134,0.4321904,84339.0,84338.0,0.1898]
[1741522243519,0.44093555,84339.0,84338.0,0.1898]
[1741522244829,0.16304515,84339.0,84338.0,0.3083918]
[1741522245220,0.28163555,84339.0,84338.0,0.1898]
[1741522245416,0.1185952,84336.0,84334.0,0.1185969]
[1741522245615,0.32194638,84339.0,84335.0,0.1473]
[1741522245822,0.1185974,84334.0,84333.0,0.1898]
[1741522246322,0.13284378,84334.0,84333.0,0.1898]
[1741522247830,0.01424638,84334.0,84333.0,0.1898]
[1741522248019,0.01424638,84334.0,84333.0,0.3083988]
[1741522248525,0.01424638,84334.0,84333.0,0.1898]
[1741522248829,0.0141614,84334.0,84333.0,0.3083988]
[1741522249423,0.00550123,84339.0,84338.0,0.1185918]
[1741522249727,0.00550123,84339.0,84334.0,0.1185971]
[1741522249920,0.00550123,84339.0,84336.0,0.0592967]
[1741522250122,0.3608,84365.0,84336.0,0.3608]
[1741522250426,0.00017785,84354.0,84353.0,0.1185707]
[1741522250726,0.00017785,84354.0,84353.0,0.4033707]
[1741522251745,0.00017785,84354.0,84353.0,0.7641707]
[1741522252034,0.11874715,84354.0,84353.0,0.7641707]
[1741522252232,0.21358715,84354.0,84353.0,0.18984]
[1741522252426,0.1185904,84339.0,84338.0,0.1898]
[1741522253135,0.4793904,84339.0,84338.0,0.1898]
[1741522254129,0.4793904,84339.0,84338.0,0.16309646]
[1741522254933,0.3608,84339.0,84328.0,0.1186055]
[1741522255133,0.059306,84324.0,84323.0,0.1186088]
[1741522255320,0.1186143,84322.0,84321.0,0.20191523]
[1741522255525,0.1186143,84322.0,84321.0,0.01211523]
[1741522255724,0.1186298,84311.0,84307.0,0.18984]
[1741522255925,0.5739098,84311.0,84307.0,0.18984]
[1741522256129,0.5739098,84311.0,84310.0,0.01378242]
[1741522256328,0.1186439,84301.0,84300.0,0.1]
[1741522256629,0.1186453,84300.0,84278.0,0.18984]
[1741522256933,0.4245453,84300.0,84299.0,0.29370655]
[1741522257123,0.3059,84300.0,84299.0,0.29370655]
[1741522257323,0.25512,84300.0,84299.0,0.29370655]
[1741522257623,0.37404737,84300.0,84299.0,0.29370655]
[1741522257823,0.52014737,84300.0,84299.0,0.29370655]
[1741522258033,0.40166207,84300.0,84299.0,0.29370655]
[1741522258231,0.40166207,84300.0,84299.0,0.60219325]
[1741522258232,0.00028207,84300.0,84299.0,0.60219325]
[1741522258434,0.00028207,84300.0,84299.0,0.48354655]
[1741522258734,0.09548,84307.0,84299.0,0.2016648]
[1741522259123,0.01001105,84309.0,84300.0,0.1508]
[1741522259436,0.1186206,84318.0,84308.0,0.3608]
[1741522259634,0.1598,84315.0,84309.0,0.1508]
[1741522259839,0.1598,84315.0,84311.0,0.3608]
[1741522260024,0.118627,84313.0,84312.0,0.1508]
[1741522260423,0.0170446,84313.0,84312.0,0.2694284]
[1741522260631,0.00017785,84321.0,84320.0,0.1186171]
[1741522260833,0.20903672,84324.0,84323.0,0.1186129]
[1741522261035,0.27711723,84345.0,84337.0,0.1185932]
[1741522261329,0.27711723,84345.0,84337.0,0.2140332]
[1741522261833,0.27711723,84345.0,84337.0,0.5748332]
[1741522262230,0.27711723,84338.0,84337.0,0.09544]
[1741522262431,0.27711723,84338.0,84331.0,0.1569]
[1741522262627,0.1186031,84330.0,84329.0,0.00017785]
[1741522263635,0.27943935,84330.0,84329.0,0.00017785]
[1741522263841,0.27943935,84330.0,84329.0,0.47958235]
[1741522264237,0.27943935,84330.0,84329.0,0.00017785]
[1741522265033,0.27943935,84330.0,84329.0,0.11878235]
[1741522265235,0.27943935,84330.0,84329.0,0.00017785]
[1741522265737,0.00573625,84330.0,84329.0,0.11878235]
[1741522266037,0.00042425,84351.0,84329.0,0.36097785]
[1741522266241,0.23612351,84369.0,84345.0,0.479382]
[1741522266242,0.1185783,84348.0,84345.0,0.479382]
[1741522266434,0.1185673,84356.0,84345.0,0.479382]
[1741522266640,0.09536,84357.0,84345.0,0.479382]
[1741522266944,0.118578,84348.0,84345.0,0.630482]
[1741522267433,0.118578,84348.0,84344.0,0.3084224]
[1741522267434,0.09545785,84346.0,84344.0,0.18984]
[1741522267635,0.1185946,84336.0,84335.0,0.3608]
[1741522267837,0.0592994,84333.0,84327.0,0.18984]
[1741522268034,0.1186031,84330.0,84327.0,0.18984]
[1741522270042,0.17751872,84330.0,84327.0,0.18984]
[1741522270350,0.1186059,84328.0,84327.0,0.18984]
[1741522270533,0.1186157,84321.0,84318.0,0.1186187]
[1741522270733,0.09508,84321.0,84320.0,0.12039607]
[1741522270938,0.1186087,84326.0,84325.0,0.1186087]
[1741522271135,0.05891562,84330.0,84321.0,0.1544]
[1741522271333,0.1186101,84325.0,84324.0,0.1544]
[1741522271534,0.118608,84327.0,84325.0,0.0593048]
[1741522271738,0.118608,84327.0,84326.0,0.1186068]
[1741522271936,0.05891562,84330.0,84324.0,0.08307104]
[1741522272136,0.05891562,84330.0,84329.0,0.4794045]
[1741522272536,0.09524,84356.0,84329.0,0.3608]
[1741522272848,0.09524,84356.0,84345.0,0.1185792]
[1741522272849,0.0592894,84348.0,84345.0,0.1185792]
[1741522273144,0.0592894,84348.0,84347.0,0.1185792]
[1741522273542,0.1185792,84347.0,84346.0,0.18984]
[1741522273849,0.0087098,84347.0,84346.0,0.3084206]
[1741522274636,0.127289,84347.0,84346.0,0.3084206]
[1741522274840,0.0087098,84347.0,84346.0,0.3084206]
[1741522275142,0.127289,84347.0,84346.0,0.3084206]
[1741522275647,0.0087098,84347.0,84346.0,0.3084206]
[1741522276845,0.0087098,84347.0,84346.0,0.32003555]
[1741522277044,0.3608,84352.0,84351.0,0.1185735]
[1741522277241,0.3608,84352.0,84351.0,0.2138135]
[1741522277747,0.4793721,84352.0,84351.0,0.2138135]
[1741522277940,0.4793721,84352.0,84351.0,0.3729135]
[1741522278137,0.36616282,84352.0,84351.0,0.5267135]
[1741522278841,0.3608,84352.0,84351.0,0.5267135]
[1741522279041,0.31927796,84352.0,84351.0,0.68562175]
[1741522279244,0.03435592,84352.0,84351.0,0.68562175]
[1741522279442,0.00017785,84356.0,84355.0,0.1185679]
[1741522280045,0.11874435,84356.0,84355.0,0.1185679]
[1741522280250,0.00017785,84356.0,84355.0,0.1185679]
[1741522280553,0.11874435,84356.0,84355.0,0.1185679]
[1741522280947,0.1185707,84353.0,84352.0,0.059286]
[1741522281147,0.1185707,84353.0,84335.0,0.09516]
[1741522281148,0.1185792,84347.0,84335.0,0.09516]
[1741522281342,0.1185792,84347.0,84345.0,0.1185819]
[1741522281547,0.2136592,84347.0,84346.0,0.3084206]
[1741522281757,0.0592784,84363.0,84355.0,0.1185679]
[1741522281959,0.21378435,84356.0,84355.0,0.1185679]
[1741522282162,0.0592865,84352.0,84350.0,0.1778571]
[1741522282470,0.1185792,84347.0,84346.0,0.18984]
[1741522282670,0.2136592,84347.0,84346.0,0.18984]
[1741522282858,0.21875816,84347.0,84346.0,0.18984]
[1741522283770,0.2136592,84347.0,84346.0,0.18984]
[1741522284160,0.2136592,84347.0,84346.0,0.3084206]
[1741522284357,0.2136592,84347.0,84346.0,0.18984]
[1741522284562,0.2141792,84347.0,84346.0,0.3084206]
[1741522284871,0.2142592,84347.0,84346.0,0.3084206]
[1741522285069,0.4499081,84351.0,84350.0,0.1185749]
[1741522285070,0.5684847,84351.0,84350.0,0.1185749]
[1741522285369,0.2913081,84351.0,84350.0,0.1185749]
[1741522285570,0.2913081,84351.0,84346.0,0.18984]
[1741522285773,0.1185792,84347.0,84346.0,0.18984]
[1741522286280,0.1185792,84347.0,84346.0,0.3084206]
[1741522286574,0.1398081,84351.0,84350.0,0.1185749]
[1741522287168,0.1398081,84358.0,84353.0,0.1778526]
[1741522287362,0.1398081,84358.0,84355.0,0.1185679]
[1741522287564,0.2583726,84358.0,84355.0,0.1185679]
[1741522287861,0.1398081,84358.0,84355.0,0.1185679]
[1741522288067,0.11874435,84356.0,84355.0,0.1185679]
[1741522288470,0.00017785,84356.0,84355.0,0.1185679]
[1741522288770,0.00017785,84356.0,84355.0,0.2140479]
[1741522289567,0.00017785,84356.0,84354.0,0.1485]
[1741522289769,0.1185679,84355.0,84354.0,0.1485]
[1741522290075,0.1185679,84355.0,84354.0,0.2670693]
[1741522290276,0.00017785,84356.0,84355.0,0.1185679]
[1741522290574,0.1398081,84358.0,84357.0,0.1185651]
[1741522290763,0.1398081,84358.0,84357.0,0.2138851]
[1741522290969,0.1398081,84358.0,84357.0,0.09532]
[1741522291272,0.1185679,84355.0,84354.0,0.1485]
[1741522291468,0.1185679,84355.0,84354.0,0.2670693]
[1741522292469,0.1185763,84349.0,84346.0,0.3084198]
[1741522292670,0.1185763,84349.0,84347.0,0.1518]
[1741522292869,0.1185763,84349.0,84346.0,0.18984]
[1741522292870,0.1185792,84347.0,84346.0,0.18984]
[1741522293969,0.2763792,84347.0,84346.0,0.18984]
[1741522294271,0.4282792,84347.0,84346.0,0.18984]
[1741522295174,0.42823606,84347.0,84346.0,0.18984]
[1741522296169,0.13998595,84363.0,84346.0,0.18984]
[1741522296365,0.1185777,84348.0,84347.0,0.3087]
[1741522296566,0.1185792,84347.0,84346.0,0.3084206]
[1741522297077,0.1183292,84347.0,84346.0,0.3084206]
[1741522297467,0.1183292,84347.0,84346.0,0.18984]
[1741522297675,0.1183292,84347.0,84346.0,0.3084206]
[1741522297873,0.1183292,84347.0,84346.0,0.18984]
[1741522298577,0.0592877,84350.0,84349.0,0.1185763]
[1741522298578,0.177864,84350.0,84349.0,0.1185763]
[1741522298966,0.332764,84350.0,84349.0,0.1185763]
[1741522300173,0.0592926,84343.0,84332.0,0.00177867]
[1741522300376,0.118589,84340.0,84337.0,0.0592965]
[1741522300579,0.118589,84340.0,84339.0,0.11876825]
[1741522301082,0.118589,84340.0,84339.0,0.26986825]
[1741522301265,0.118589,84340.0,84339.0,0.15127785]
[1741522301469,0.118589,84340.0,84339.0,0.00017785]
[1741522302572,0.118589,84340.0,84339.0,0.11876825]
[1741522302772,0.213429,84340.0,84339.0,0.11876825]
[1741522303277,0.14019824,84341.0,84340.0,0.118589]
[1741522303472,0.14019824,84341.0,84340.0,0.269689]
[1741522303674,0.25878584,84341.0,84340.0,0.432089]
[1741522303881,0.57738584,84341.0,84340.0,0.432089]
[1741522304775,0.57713584,84341.0,84340.0,0.432089]
[1741522306080,0.57713584,84341.0,84340.0,0.3135]
[1741522306268,0.57713584,84341.0,84339.0,0.00017785]
[1741522306269,0.118589,84340.0,84339.0,0.00017785]
[1741522306776,0.423689,84340.0,84339.0,0.00017785]
[1741522308167,0.423439,84340.0,84339.0,0.00017785]
[1741522310080,0.1483,84340.0,84339.0,0.11876825]
[1741522310274,0.16443497,84342.0,84341.0,0.1185876]
[1741522310981,0.16443497,84342.0,84341.0,0.4296876]
[1741522311771,0.10514177,84342.0,84341.0,0.4296876]
[1741522311966,0.22372797,84342.0,84341.0,0.3111]
[1741522312168,0.22372797,84342.0,84341.0,0.4296876]
[1741522312380,0.1185862,84342.0,84341.0,0.4296876]
[1741522312675,0.3187,84346.0,84343.0,0.1185848]
[1741522312874,0.17499595,84348.0,84346.0,0.1185792]
[1741522312875,0.1185793,84347.0,84346.0,0.1185792]
[1741522313074,0.17499595,84348.0,84347.0,0.1185792]
[1741522313274,0.17499595,84348.0,84347.0,0.13074987]
[1741522313483,0.29357365,84348.0,84347.0,0.13074987]
[1741522313885,0.29357365,84348.0,84347.0,0.1185792]
[1741522315080,0.29357365,84348.0,84347.0,0.3083792]
[1741522315785,0.1185777,84348.0,84347.0,0.3083792]
[1741522316376,0.00108001,84377.0,84347.0,0.3083792]
[1741522316582,0.29356665,84353.0,84352.0,0.1185721]
[1741522317393,0.1185777,84348.0,84347.0,0.4018175]
[1741522317685,0.1185777,84348.0,84347.0,0.4269552]
[1741522318279,0.1185777,84348.0,84347.0,0.3083775]
[1741522318480,0.1185777,84348.0,84347.0,0.1898]
[1741522318683,0.2824777,84348.0,84347.0,0.3083792]
[1741522319879,0.1639,84348.0,84347.0,0.3083792]
[1741522320080,0.17499595,84355.0,84352.0,0.1185721]
[1741522320281,0.1185707,84354.0,84353.0,0.1185707]
[1741522320580,0.1185707,84353.0,84352.0,0.1185721]
[1741522320781,0.2711707,84353.0,84352.0,0.1185721]
[1741522321178,0.1185777,84349.0,84348.0,0.1185766]
[1741522321382,0.1185777,84348.0,84347.0,0.1898]
[1741522321581,0.4242777,84348.0,84347.0,0.1898]
[1741522322584,0.3057,84348.0,84347.0,0.3083792]
[1741522322789,0.1526,84348.0,84347.0,0.3083792]
[1741522322983,0.118573,84352.0,84351.0,0.1185735]
[1741522322984,0.32813637,84352.0,84351.0,0.1185735]
[1741522323380,0.49203637,84352.0,84351.0,0.1185735]
[1741522323585,0.20956337,84352.0,84351.0,0.1185735]
[1741522324186,0.32813547,84352.0,84351.0,0.1185735]
[1741522324384,0.20956337,84352.0,84351.0,0.1185735]
[1741522324889,0.32813547,84352.0,84351.0,0.1185735]
[1741522325280,0.24470665,84362.0,84351.0,0.37329782]
[1741522325479,0.2498722,84367.0,84363.0,0.0592781]
[1741522325686,0.2098256,84367.0,84366.0,0.1185524]
[1741522325990,0.16829984,84367.0,84366.0,0.3083524]
[1741522326189,0.154,84386.0,84369.0,0.1185482]